fUST/lending_fUST_20250819
["ID","MTS","AMOUNT","RATE_DAILY","PERIOD"]
[380153258,1755579054247,-480.0,0.00020547,2]
[380153259,1755579054256,-243.507206,0.00020547,2]
[380153260,1755579054265,-210.747396,0.00020547,2]
[380153261,1755579054275,-210.747396,0.00020547,2]
[380153262,1755579054284,-480.0,0.00020547,2]
[380153263,1755579054293,-151.0,0.00020547,2]
[380153264,1755579054302,-152.506116,0.00020547,2]
[380153265,1755579054311,-1301.57,0.00020547,2]
[380153266,1755579054320,-152.506116,0.00020547,2]
[380153267,1755579054329,-151.0,0.00020547,2]
[380153268,1755579054339,-600.59,0.00020547,2]
[380153269,1755579054350,-480.0,0.00020547,2]
[380153270,1755579054360,-151.0,0.00020547,2]
[380153271,1755579054369,-480.0,0.00020547,2]
[380153272,1755579054378,-480.0,0.00020547,2]
[380153273,1755579054387,-480.0,0.00020547,2]
[380153274,1755579054398,-1740.65,0.00020547,2]
[380153275,1755579054407,-355.235657,0.00020547,2]
[380153276,1755579054417,-214.652209,0.00020547,2]
[380153277,1755579054427,-151.0,0.00020547,2]
[380153278,1755579054436,-151.0,0.00020547,2]
[380153279,1755579054446,-355.235657,0.00020547,2]
[380153280,1755579054455,-214.652209,0.00020547,2]
[380153281,1755579054465,-151.0,0.00020547,2]
[380153282,1755579054474,-231.672566,0.00020547,2]
[380153283,1755579054485,-480.0,0.00020547,2]
[380153284,1755579054494,-480.0,0.00020547,2]
[380153285,1755579054503,-151.0,0.00020547,2]
[380153286,1755579054512,-151.0,0.00020547,2]
[380153287,1755579054521,-1551.36,0.00020547,2]
[380153288,1755579054530,-480.0,0.00020547,2]
[380153289,1755579054539,-643.09,0.00020547,2]
[380153290,1755579054548,-151.0,0.00020547,2]
[380153291,1755579054557,-151.0,0.00020547,2]
[380153292,1755579054566,-287.64644154,0.00020547,2]
[380153293,1755579054575,-565.62,0.00020547,2]
[380153294,1755579054584,-1642.46,0.00020547,2]
[380153295,1755579054594,-842.12,0.00020547,2]
[380153296,1755579054603,-460.0,0.00020547,2]
[380153297,1755579054613,-847.46,0.00020547,2]
[380153298,1755579054622,-480.0,0.00020547,2]
[380153299,1755579054632,-4665.09,0.00020547,2]
[380153300,1755579054641,-2493.28,0.00020547,2]
[380153301,1755579054650,-2268.97,0.00020547,2]
[380153302,1755579054659,-674.92,0.00020547,2]
[380153303,1755579054668,-1673.72,0.00020547,2]
[380153304,1755579054678,-480.0,0.00020547,2]
[380153305,1755579054687,-858.8,0.00020547,2]
[380153306,1755579054696,-858.56,0.00020547,2]
[380153307,1755579054705,-480.0,0.00020547,2]
[380153308,1755579054714,-151.0,0.00020547,2]
[380153309,1755579054724,-1284.65,0.00020547,2]
[380153310,1755579054733,-571.87,0.00020547,2]
[380153311,1755579054742,-151.0,0.00020547,2]
[380153312,1755579054751,-151.0,0.00020547,2]
[380153313,1755579054760,-151.0,0.00020547,2]
[380153314,1755579054770,-1925.36,0.00020547,2]
[380153315,1755579054779,-769.71,0.00020547,2]
[380153316,1755579054789,-480.0,0.00020547,2]
[380153317,1755579054798,-480.0,0.00020547,2]
[380153318,1755579054807,-699.38,0.00020547,2]
[380153319,1755579054817,-480.0,0.00020547,2]
[380153320,1755579054826,-480.0,0.00020547,2]
[380153321,1755579054836,-480.0,0.00020547,2]
[380153322,1755579054845,-876.41,0.00020547,2]
[380153323,1755579054854,-480.0,0.00020547,2]
[380153324,1755579054864,-480.0,0.00020547,2]
[380153325,1755579054873,-480.0,0.00020547,2]
[380153326,1755579054883,-480.0,0.00020547,2]
[380153327,1755579054892,-151.0,0.00020547,2]
[380153328,1755579054901,-293.462141,0.00020547,2]
[380153329,1755579054911,-480.0,0.00020547,2]
[380153330,1755579055007,-724.53687,0.00020547,2]
[380153331,1755579055017,-293.462141,0.00020547,2]
[380153332,1755579055026,-5516.69,0.00020547,2]
[380153333,1755579055035,-724.53687,0.00020547,2]
[380153334,1755579055044,-487.1,0.00020547,2]
[380153335,1755579055054,-829.77,0.00020547,2]
[380153336,1755579055063,-1485.56,0.00020547,2]
[380153337,1755579055072,-500.33,0.00020547,2]
[380153338,1755579055081,-153.049576,0.00020547,2]
[380153339,1755579055090,-151.0,0.00020547,2]
[380153340,1755579055100,-153.049576,0.00020547,2]
[380153341,1755579055109,-643.26,0.00020547,2]
[380153342,1755579055119,-881.78,0.00020547,2]
[380153343,1755579055128,-766.36,0.00020547,2]
[380153344,1755579055137,-480.0,0.00020547,2]
[380153345,1755579055146,-5454.84,0.00020547,2]
[380153346,1755579055155,-480.0,0.00020547,2]
[380153347,1755579055165,-480.0,0.00020547,2]
[380153348,1755579055174,-1776.55,0.00020547,2]
[380153349,1755579055183,-480.0,0.00020547,2]
[380153350,1755579055192,-297.501356,0.00020547,2]
[380153351,1755579055201,-1807.55,0.00020547,2]
[380153352,1755579055210,-297.501356,0.00020547,2]
[380153353,1755579055219,-480.0,0.00020547,2]
[380153354,1755579055228,-150000.0,0.00020547,2]
[380153355,1755579055239,-86495.23695718,0.00020547,2]
[380153356,1755579055252,-318.4688872,0.00020547,2]
[380153357,1755579055261,-288.35200594,0.00020547,2]
[380153358,1755579055271,-326.0,0.00020547,2]
[380153359,1755579055280,-326.0,0.00020547,2]
[380153360,1755579055289,-326.0,0.00020547,2]
[380153361,1755579055298,-326.0,0.00020547,2]
[380153362,1755579055308,-326.0,0.00020547,2]
[380153363,1755579055317,-205.96031282,0.00020547,2]
[380153364,1755579055326,-151.0,0.00020548,2]
[380153365,1755579055335,-500.0,0.00020548,2]
[380153366,1755579055345,-151.0,0.00020548,2]
[380153367,1755579055358,-198.0,0.00020548,2]
[380153368,1755579055367,-153.0,0.00020548,2]
[380153369,1755579055377,-321.625971,0.00020548,2]
[380153370,1755579055386,-306.0,0.00020548,2]
[380153371,1755579055397,-160.8129855,0.00020548,2]
[380153372,1755579055406,-293.8943201,0.00020548,2]
[380153373,1755579055415,-306.0,0.00020548,2]
[380153374,1755579055425,-589.8123666,0.00020548,2]
[380153375,1755579055435,-160.8129855,0.00020548,2]
[380153376,1755579055444,-718.2953612,0.00020548,2]
[380153377,1755579055454,-160.8129855,0.00020548,2]
[380153378,1755579055463,-153.0,0.00020548,2]
[380153379,1755579055473,-580.787823,0.00020548,2]
[380153380,1755579055482,-160.8129855,0.00020548,2]
[380153381,1755579055492,-293.8943201,0.00020548,2]
[380153382,1755579055501,-580.787823,0.00020548,2]
[380153383,1755579055510,-580.787823,0.00020548,2]
[380153384,1755579055519,-293.8943201,0.00020548,2]
[380153385,1755579055528,-580.8939941,0.00020548,2]
[380153386,1755579055537,-306.0,0.00020548,2]
[380153387,1755579055546,-501.71740624,0.00020573,2]
[380153388,1755579055555,-501.33458769,0.00020573,2]
[380153389,1755579055564,-196.1566654,0.00020573,2]
[380153390,1755579055573,-178.08407051,0.00020573,2]
[380153391,1755579055687,-321.91592949,0.00020573,2]
[380153392,1755579055696,-500.0,0.00020573,2]
[380153393,1755579055706,-500.0,0.00020573,2]
[380153394,1755579055715,-379.01005194,0.00020573,2]
[380153395,1755579055728,-120.98994806,0.00020573,2]
[380153396,1755579055738,-500.0,0.00020573,2]
[380153397,1755579055747,-500.0,0.00020573,2]
[380153398,1755579055756,-500.0,0.00020573,2]
[380153399,1755579055766,-500.0,0.00020573,2]
[380153400,1755579055775,-500.0,0.00020573,2]
[380153401,1755579055784,-500.0,0.00020573,2]
[380153402,1755579055793,-501.21209222,0.00020573,2]
[380153403,1755579055802,-622.35043267,0.00020573,2]
[380153404,1755579055812,-500.0,0.00020573,2]
[380153405,1755579055822,-500.31284062,0.00020573,2]
[380153406,1755579055831,-500.47810497,0.00020573,2]
[380153407,1755579055841,-500.0,0.00020573,2]
[380153408,1755579055850,-154.62673955,0.00020573,2]
[380153409,1755579055859,-500.0,0.00020573,2]
[380153410,1755579055868,-500.0,0.00020573,2]
[380153411,1755579055878,-500.0,0.00020573,2]
[380153412,1755579055888,-500.0,0.00020573,2]
[380153413,1755579055897,-500.0,0.00020573,2]
[380153414,1755579055906,-500.0,0.00020573,2]
[380153415,1755579055915,-500.0,0.00020573,2]
[380153416,1755579055925,-162.499377,0.00020573,2]
[380153417,1755579055934,-500.0,0.00020573,2]
[380153418,1755579055944,-525.8493875,0.00020573,2]
[380153419,1755579055953,-500.0,0.00020573,2]
[380153420,1755579055963,-430.0,0.00020591,2]
[380153421,1755579055972,-151.0,0.000206,4]
[380153422,1755579055983,-168.0,0.00020648,2]
[380153423,1755579055992,-151.0,0.00020653,2]
[380153424,1755579056001,-151.0,0.00020653,2]
[380153425,1755579056011,-168.0,0.00020653,2]
[380153426,1755579056020,-151.0,0.00020684,2]
[380153427,1755579056029,-481.80274514,0.00020684,2]
[380153428,1755579056038,-480.0,0.00020684,2]
[380153429,1755579056047,-1714.74,0.00020684,2]
[380153430,1755579056057,-480.0,0.00020684,2]
[380153431,1755579056066,-453.01,0.00020687,2]
[380153432,1755579056075,-151.0,0.000207,4]
[380153433,1755579056085,-151.0,0.000207,4]
[380153434,1755579056094,-151.0,0.000207,2]
[380153435,1755579056106,-243.507206,0.000207,2]
[380153436,1755579056116,-151.0,0.000207,2]
[380153437,1755579056125,-243.507206,0.000207,2]
[380153438,1755579056135,-210.747396,0.000207,2]
[380153439,1755579056144,-210.747396,0.000207,2]
[380153440,1755579056156,-151.0,0.000207,2]
[380153441,1755579056165,-152.506116,0.000207,2]
[380153442,1755579056174,-152.506116,0.000207,2]
[380153443,1755579056184,-151.0,0.000207,2]
[380153444,1755579056194,-190.694728,0.000207,2]
[380153445,1755579056203,-355.235657,0.000207,2]
[380153446,1755579056212,-214.652209,0.000207,2]
[380153447,1755579056221,-151.0,0.000207,2]
[380153448,1755579056230,-151.0,0.000207,2]
[380153449,1755579056240,-355.235657,0.000207,2]
[380153450,1755579056250,-214.652209,0.000207,2]
[380153451,1755579056260,-151.0,0.000207,2]
[380153452,1755579056269,-175.81290573,0.00020721,2]
[380153453,1755579056278,-151.0,0.000208,4]
[380153454,1755579056289,-2000.0,0.00020816,2]
[380153455,1755579056298,-202.98289716,0.0002082,2]
[380153456,1755579056309,-502.15,0.00020821,2]
[380153457,1755579056319,-151.0,0.00020821,2]
[380153458,1755579056330,-151.0,0.00020821,2]
[380153459,1755579056339,-480.0,0.00020821,2]
[380153460,1755579056352,-151.0,0.00020821,2]
[380153461,1755579056362,-242.406547,0.00020821,2]
[380153462,1755579056371,-2624.57,0.00020821,2]
[380153463,1755579056380,-497.5,0.00020821,2]
[380153464,1755579056390,-480.0,0.00020821,2]
[380153465,1755579056399,-529.89,0.00020821,2]
[380153466,1755579056408,-480.0,0.00020821,2]
[380153467,1755579056418,-480.0,0.00020821,2]
[380153468,1755579056427,-151.0,0.00020821,2]
[380153469,1755579056436,-560.19,0.00020821,2]
[380153470,1755579056445,-480.0,0.00020821,2]
[380153471,1755579056455,-378.91074401,0.00020821,2]
[380153472,1755579056464,-644.01,0.00020821,2]
[380153473,1755579056473,-1689.2,0.00020821,2]
[380153474,1755579056482,-151.0,0.00020821,2]
[380153475,1755579056491,-151.0,0.00020821,2]
[380153476,1755579056500,-151.0,0.00020821,2]
[380153477,1755579056509,-480.0,0.00020821,2]
[380153478,1755579056519,-480.0,0.00020821,2]
[380153479,1755579056529,-198.271359,0.00020821,2]
[380153480,1755579056540,-198.271359,0.00020821,2]
[380153481,1755579056550,-480.0,0.00020821,2]
[380153482,1755579056638,-642.04,0.00020821,2]
[380153483,1755579056648,-480.0,0.00020821,2]
[380153484,1755579056658,-480.0,0.00020821,2]
[380153485,1755579056667,-151.0,0.00020821,2]
[380153486,1755579056677,-614.900616,0.00020821,2]
[380153487,1755579056687,-610.7,0.00020821,2]
[380153488,1755579056698,-614.900616,0.00020821,2]
[380153489,1755579056708,-985.99,0.00020821,2]
[380153490,1755579056717,-480.0,0.00020821,2]
[380153491,1755579056726,-151.0,0.00020821,2]
[380153492,1755579056735,-552.88,0.00020821,2]
[380153493,1755579056748,-513.05,0.00020821,2]
[380153494,1755579056763,-151.0,0.00020821,2]
[380153495,1755579056772,-480.0,0.00020821,2]
[380153496,1755579056781,-744.59,0.00020821,2]
[380153497,1755579056789,-3778.42,0.00020821,2]
[380153498,1755579056799,-480.0,0.00020821,2]
[380153499,1755579056808,-480.0,0.00020821,2]
[380153500,1755579056818,-498.855072,0.00020821,2]
[380153501,1755579056827,-498.855072,0.00020821,2]
[380153502,1755579056839,-151.0,0.00020821,2]
[380153503,1755579056853,-480.0,0.00020821,2]
[380153504,1755579056866,-151.0,0.00020821,2]
[380153505,1755579056875,-480.0,0.00020821,2]
[380153506,1755579056885,-151.0,0.00020821,2]
[380153507,1755579056894,-260.53091,0.00020821,2]
[380153508,1755579056904,-260.53091,0.00020821,2]
[380153509,1755579056913,-717.37,0.00020821,2]
[380153510,1755579056923,-152.59292,0.00020821,2]
[380153511,1755579056932,-512.075458,0.00020821,2]
[380153512,1755579056941,-151.0,0.00020821,2]
[380153513,1755579056950,-512.075458,0.00020821,2]
[380153514,1755579056960,-480.0,0.00020821,2]
[380153515,1755579056969,-151.0,0.00020821,2]
[380153516,1755579056979,-151.0,0.00020821,2]
[380153517,1755579056988,-480.0,0.00020821,2]
[380153518,1755579056997,-151.0,0.00020821,2]
[380153519,1755579057007,-217.522944,0.00020821,2]
[380153520,1755579057016,-480.0,0.00020821,2]
[380153521,1755579057025,-939.72,0.00020821,2]
[380153522,1755579057034,-1319.158237,0.00020821,2]
[380153523,1755579057043,-480.0,0.00020821,2]
[380153524,1755579057053,-1319.158237,0.00020821,2]
[380153525,1755579057063,-480.0,0.00020821,2]
[380153526,1755579057072,-881.35,0.00020821,2]
[380153527,1755579057082,-1963.35,0.00020821,2]
[380153528,1755579057091,-480.0,0.00020821,2]
[380153529,1755579057100,-341.94186023,0.00020821,2]
[380153530,1755579057110,-1301.57,0.00020821,2]
[380153531,1755579057119,-600.59,0.00020821,2]
[380153532,1755579057129,-480.0,0.00020821,2]
[380153533,1755579057138,-480.0,0.00020821,2]
[380153534,1755579057148,-480.0,0.00020821,2]
[380153535,1755579057158,-1740.65,0.00020821,2]
[380153536,1755579057169,-480.0,0.00020821,2]
[380153537,1755579057178,-480.0,0.00020821,2]
[380153538,1755579057187,-151.0,0.00020821,2]
[380153539,1755579057197,-151.0,0.00020821,2]
[380153540,1755579057206,-1551.36,0.00020821,2]
[380153541,1755579057216,-480.0,0.00020821,2]
[380153542,1755579057226,-643.09,0.00020821,2]
[380153543,1755579057235,-296.127191,0.00020821,2]
[380153544,1755579057245,-565.62,0.00020821,2]
[380153545,1755579057254,-1642.46,0.00020821,2]
[380153546,1755579057263,-842.12,0.00020821,2]
[380153547,1755579057273,-847.46,0.00020821,2]
[380153548,1755579057282,-1500.0,0.00020821,14]
[380153549,1755579057291,-1500.0,0.00020821,14]
[380153550,1755579057300,-1500.0,0.00020821,14]
[380153551,1755579057310,-480.0,0.00020821,2]
[380153552,1755579057320,-1500.0,0.00020821,14]
[380153553,1755579057331,-1500.0,0.00020821,14]
[380153554,1755579057341,-1500.0,0.00020821,14]
[380153555,1755579057354,-1500.0,0.00020821,14]
[380153556,1755579057363,-1500.0,0.00020821,14]
[380153557,1755579057373,-311.36512314,0.00020821,14]
[380153558,1755579057387,-1188.63487686,0.00020821,14]
[380153559,1755579057398,-1500.0,0.00020821,14]
[380153560,1755579057408,-4665.09,0.00020821,2]
[380153561,1755579057418,-2290.62570394,0.00020821,2]
[380153562,1755579057528,-151.0,0.00019452,2]
[380153563,1755579057537,-151.0,0.00019452,2]
[380153564,1755579057547,-157.174475,0.00019452,2]
[380153565,1755579057556,-573.94,0.00019726,2]
[380153566,1755579057565,-151.0,0.00019726,2]
[380153567,1755579057574,-151.0,0.00019726,2]
[380153568,1755579057583,-212.69257,0.00019976,2]
[380153569,1755579057592,-151.0,0.00019976,2]
[380153570,1755579057601,-573.94,0.0002,2]
[380153571,1755579057610,-408.0,0.00020224,2]
[380153572,1755579057620,-151.0,0.00020273,2]
[380153573,1755579057629,-573.94,0.00020273,2]
[380153574,1755579057638,-151.0,0.00020547,2]
[380153575,1755579057649,-573.94,0.00020547,2]
[380153576,1755579057667,-202.65429606,0.00020821,2]
[380153577,1755579057676,-1500.0,0.00020821,14]
[380153578,1755579057685,-180.21083141,0.00020821,14]
[380153579,1755579058018,-274.18808236,0.00019178,2]
[380153580,1755579058027,-480.0,0.00019178,2]
[380153581,1755579058036,-245.81191764,0.00019178,2]
[380153582,1755579058047,-234.18808236,0.00019178,2]
[380153583,1755579058056,-195.16740033,0.00019178,2]
[380153584,1755579058145,-30.20795139,0.00019178,2]
[380153585,1755579058154,-480.0,0.00019178,2]
[380153586,1755579058163,-504.36855434,0.00019178,2]
[380153587,1755579058174,-151.0,0.00019452,2]
[380153588,1755579058183,-151.0,0.00019726,2]
[380153589,1755579058192,-151.0,0.00019976,2]
[380153590,1755579058201,-127.46173186,0.0002,2]
[380153591,1755579058212,-23.53826814,0.0002,2]
[380153592,1755579058221,-151.0,0.0002,2]
[380153593,1755579058231,-151.0,0.00020273,2]
[380153594,1755579058240,-151.0,0.00020273,2]
[380153595,1755579058249,-151.0,0.00020547,2]
[380153596,1755579058258,-151.0,0.00020547,2]
[380153597,1755579058267,-287.405135,0.00020547,2]
[380153598,1755579058276,-151.0,0.00020573,2]
[380153599,1755579058285,-1319.78916859,0.00020821,14]
[380153600,1755579058294,-1500.0,0.00020821,14]
[380153601,1755579058303,-624.48812143,0.00020821,14]
[380153603,1755579090981,159.266538,0.00013699,2]
[380153614,1755579644895,9781.0,0.0001861,2]
[380153618,1755579934130,-151.15445482,0.00018876,2]
[380153619,1755579934151,-131.47974369,0.000189,2]
[380153622,1755580025581,-171.00608485,0.000189,2]
[380153623,1755580025602,-321.58958271,0.000189,2]
[380153624,1755580025623,-190.80431277,0.00018973,2]
[380153625,1755580038080,-54.10933427,0.00018973,2]
[380153626,1755580038100,-244.91364702,0.00018999,2]
[380153627,1755580038120,-244.91364702,0.00019026,2]
[380153628,1755580038140,-160.0,0.0001905,2]
[380153629,1755580038160,-244.91364702,0.00019052,2]
[380153630,1755580038180,-218.07080063,0.00019073,2]
[380153661,1755580232179,-214.39305514,0.000189,2]
[380153662,1755580232188,-244.91364702,0.00018977,2]
[380153663,1755580232199,-302.48582854,0.00018978,2]
[380153664,1755580232208,-1200.0,0.00019076,2]
[380153665,1755580232218,-1200.0,0.00019077,2]
[380153666,1755580232227,-300.0,0.00019077,2]
[380153667,1755580232237,-300.0,0.00019077,2]
[380153668,1755580232247,-300.0,0.00019077,2]
[380153669,1755580232256,-300.0,0.00019077,2]
[380153670,1755580232266,-151.15445482,0.00019078,2]
[380153671,1755580232276,-1905.46046943,0.00019078,2]
[380153672,1755580232286,-350.0522614,0.00019078,2]
[380153673,1755580232295,-9485.69748092,0.00019078,2]
[380153674,1755580232306,-1138.80134258,0.00019078,2]
[380153675,1755580232317,-643.8911765,0.00019078,2]
[380153676,1755580232327,-302.48582854,0.00019167,2]
[380153677,1755580232337,-500.0,0.00019177,2]
[380153678,1755580232346,-500.0,0.00019177,2]
[380153679,1755580232356,-500.0,0.00019177,2]
[380153680,1755580232365,-579.39904415,0.00019177,2]
[380153681,1755580232375,-500.0,0.00019177,2]
[380153682,1755580232384,-230.17243687,0.00019177,2]
[380153683,1755580232394,-376.00610808,0.00019177,2]
[380153684,1755580232403,-178.6540805,0.00019177,2]
[380153685,1755580232412,-500.0,0.00019177,2]
[380153686,1755580232421,-183.0199536,0.00019177,2]
[380153687,1755580232430,-480.0,0.00019178,2]
[380153688,1755580232439,-349.56029387,0.00019178,2]
[380153689,1755580232450,-480.0,0.00019178,2]
[380153690,1755580232460,-480.0,0.00019178,2]
[380153691,1755580232468,-480.0,0.00019178,2]
[380153692,1755580232478,-480.0,0.00019178,2]
[380153693,1755580232487,-436.57500227,0.00019178,2]
[380153694,1755580232497,-480.0,0.00019178,2]
[380153695,1755580232506,-294.11830118,0.00019178,2]
[380153696,1755580232515,-294.95834607,0.00019178,2]
[380153697,1755580232524,-480.0,0.00019178,2]
[380153698,1755580232533,-480.0,0.00019178,2]
[380153699,1755580232543,-480.0,0.00019178,2]
[380153700,1755580232552,-480.0,0.00019178,2]
[380153701,1755580232562,-460.66332777,0.00019178,2]
[380153702,1755580232570,-268.0754093,0.00019178,2]
[380153703,1755580232580,-75.29608448,0.00019178,2]
[380153704,1755580232592,-301.2680743,0.00019178,2]
[380153705,1755580232607,-83.43584122,0.00019178,2]
[380153706,1755580232617,-480.0,0.00019178,2]
[380153707,1755580232627,-480.0,0.00019178,2]
[380153708,1755580232635,-480.0,0.00019178,2]
[380153709,1755580232644,-480.0,0.00019178,2]
[380153710,1755580232654,-480.0,0.00019178,2]
[380153711,1755580232663,-480.0,0.00019178,2]
[380153712,1755580232672,-480.0,0.00019178,2]
[380153713,1755580232681,-596.07355571,0.00019178,2]
[380153714,1755580232690,-480.0,0.00019178,2]
[380153715,1755580232701,-480.0,0.00019178,2]
[380153716,1755580232710,-482.97910387,0.00019178,2]
[380153717,1755580232719,-480.0,0.00019178,2]
[380153718,1755580232728,-480.0,0.00019178,2]
[380153719,1755580232738,-480.0,0.00019178,2]
[380153720,1755580232750,-582.10457914,0.00019178,2]
[380153721,1755580232761,-480.0,0.00019178,2]
[380153722,1755580232770,-428.03659096,0.00019178,2]
[380153723,1755580232780,-480.0,0.00019178,2]
[380153724,1755580232789,-480.0,0.00019178,2]
[380153725,1755580232798,-480.0,0.00019178,2]
[380153726,1755580232807,-480.0,0.00019178,2]
[380153727,1755580232817,-480.0,0.00019178,2]
[380153731,1755580232937,-480.0,0.00019178,2]
[380153732,1755580232948,-480.0,0.00019178,2]
[380153734,1755580232957,-502.58818789,0.00019178,2]
[380153736,1755580232967,-448.84922466,0.00019178,2]
[380153738,1755580232976,-500.0,0.00019178,2]
[380153740,1755580232985,-480.0,0.00019178,2]
[380153742,1755580232994,-480.0,0.00019178,2]
[380153744,1755580233004,-480.0,0.00019178,2]
[380153746,1755580233014,-460.0,0.00019178,2]
[380153748,1755580233023,-307.64631675,0.00019178,2]
[380153750,1755580233037,-480.0,0.00019178,2]
[380153752,1755580233053,-480.0,0.00019178,2]
[380153754,1755580233062,-480.0,0.00019178,2]
[380153756,1755580233072,-480.0,0.00019178,2]
[380153758,1755580233082,-480.0,0.00019178,2]
[380153760,1755580233092,-480.0,0.00019178,2]
[380153762,1755580233101,-483.53420393,0.00019178,2]
[380153764,1755580233110,-480.0,0.00019178,2]
[380153766,1755580233120,-480.0,0.00019178,2]
[380153768,1755580233130,-480.0,0.00019178,2]
[380153770,1755580233139,-480.0,0.00019178,2]
[380153772,1755580233149,-480.0,0.00019178,2]
[380153774,1755580233158,-480.0,0.00019178,2]
[380153776,1755580233168,-485.84814579,0.00019178,2]
[380153778,1755580233177,-480.0,0.00019178,2]
[380153780,1755580233186,-480.0,0.00019178,2]
[380153782,1755580233197,-480.0,0.00019178,2]
[380153784,1755580233206,-480.0,0.00019178,2]
[380153786,1755580233216,-480.0,0.00019178,2]
[380153788,1755580233226,-524.4,0.00019178,2]
[380153790,1755580233236,-527.5562002,0.00019178,2]
[380153792,1755580233246,-480.0,0.00019178,2]
[380153794,1755580233256,-480.0,0.00019178,2]
[380153796,1755580233265,-480.0,0.00019178,2]
[380153798,1755580233275,-404.33544045,0.00019178,2]
[380153800,1755580233284,-480.0,0.00019178,2]
[380153802,1755580233293,-480.0,0.00019178,2]
[380153803,1755580233303,-480.0,0.00019178,2]
[380153806,1755580233312,-480.0,0.00019178,2]
[380153807,1755580233321,-480.0,0.00019178,2]
[380153810,1755580233331,-480.0,0.00019178,2]
[380153811,1755580233341,-462.76007472,0.00019178,2]
[380153813,1755580233350,-480.0,0.00019178,2]
[380153815,1755580233360,-480.0,0.00019178,2]
[380153817,1755580233370,-480.0,0.00019178,2]
[380153820,1755580233380,-480.0,0.00019178,2]
[380153821,1755580233390,-1481.5,0.00019178,2]
[380153824,1755580233400,-522.48,0.00019178,2]
[380153826,1755580233410,-480.0,0.00019178,2]
[380153828,1755580233420,-480.0,0.00019178,2]
[380153830,1755580233429,-480.0,0.00019178,2]
[380153831,1755580233439,-480.0,0.00019178,2]
[380153833,1755580233449,-460.0,0.00019178,2]
[380153835,1755580233459,-480.0,0.00019178,2]
[380153837,1755580233468,-480.0,0.00019178,2]
[380153839,1755580233478,-480.0,0.00019178,2]
[380153842,1755580233488,-400.0,0.00019178,2]
[380153844,1755580233497,-480.0,0.00019178,2]
[380153845,1755580233508,-480.0,0.00019178,2]
[380153847,1755580233517,-480.0,0.00019178,2]
[380153849,1755580233527,-480.0,0.00019178,2]
[380153851,1755580233536,-480.0,0.00019178,2]
[380153853,1755580233546,-480.0,0.00019178,2]
[380153855,1755580233555,-326.8347982,0.00019178,2]
[380153857,1755580233564,-480.0,0.00019178,2]
[380153859,1755580233574,-480.0,0.00019178,2]
[380153861,1755580233583,-480.0,0.00019178,2]
[380153863,1755580233593,-480.0,0.00019178,2]
[380153865,1755580233603,-486.82,0.00019178,2]
[380153867,1755580233613,-480.0,0.00019178,2]
[380153869,1755580233622,-480.0,0.00019178,2]
[380153871,1755580233631,-500.4,0.00019178,2]
[380153873,1755580233641,-491.78,0.00019178,2]
[380153875,1755580233650,-460.0,0.00019178,2]
[380153877,1755580233660,-287.64644154,0.00019178,2]
[380153879,1755580233669,-480.0,0.00019178,2]